Department Family,Entity,Date,Expense type,Expense area,Supplier,Transaction number,Amount
BEIS,ACAS,25/07/2022,AGENCY STAFF,ODHR,MICHAEL PAGE,POIN641,8559.42
BEIS,ACAS,21/07/2022,CONTRACTOR OFF-PAYROLL IN IR35,DDAT,ALEXANDER MANN SOLUTIONS LTD,POIN642,3541.62
BEIS,ACAS,22/07/2022,PROFESSIONAL FEES,DDAT,BIG BLUE DOOR,POIN643,900
BEIS,ACAS,22/07/2022,TRAINERS & GUEST SPEAKERS,ODHR,PAULINE HUGHES LIMITED,POIN644,1200
BEIS,ACAS,26/07/2022,SOFTWARE & LICENCES,DDAT,PHOENIX SOFTWARE LTD,POIN645,1363.74
BEIS,ACAS,26/07/2022,SOFTWARE & LICENCES,DDAT,PHOENIX SOFTWARE LTD,POIN645,151.62
BEIS,ACAS,22/06/2022,PROFESSIONAL FEES,FEP,GOVERNMENT PROPERTY AGENCY,POIN646,360
BEIS,ACAS,14/07/2022,PROFESSIONAL FEES,FEP,GOVERNMENT PROPERTY AGENCY,POIN647,360
BEIS,ACAS,25/07/2022,OCCUPATIONAL HEALTH SERVICE,FEP,FLEXIFORM BUSINESS FURNITURE LTD,POIN648,482.4
BEIS,ACAS,28/07/2022,AGENCY STAFF,ODHR,ALEXANDER MANN SOLUTIONS LTD,POIN649,4003.44
BEIS,ACAS,29/07/2022,AGENCY STAFF,ODHR,MICHAEL PAGE,POIN650,1077.41
BEIS,ACAS,27/07/2022,STAFF RECRUITMENT COSTS,ODHR,HAYS RECRUITMENT,POIN651,2665.5
BEIS,ACAS,27/07/2022,STAFF RECRUITMENT COSTS,ODHR,HAYS RECRUITMENT,POIN652,2132.4
BEIS,ACAS,28/07/2022,PUBLICATIONS AND PERIODICALS,SPPC,HH GLOBAL,POIN653,5117.85
BEIS,ACAS,28/07/2022,PUBLICATIONS AND PERIODICALS,SPPC,HH GLOBAL,POIN653,456.75
BEIS,ACAS,27/07/2022,PROFESSIONAL FEES,DDAT,ATOS IT SERVICES UK LIMITED,POIN654,4930.79
BEIS,ACAS,27/07/2022,SOFTWARE & LICENCES,DDAT,ATOS IT SERVICES UK LIMITED,POIN655,2275.99
BEIS,ACAS,27/07/2022,SOFTWARE & LICENCES,DDAT,ATOS IT SERVICES UK LIMITED,POIN655,11191.03
BEIS,ACAS,27/07/2022,SOFTWARE & LICENCES,DDAT,ATOS IT SERVICES UK LIMITED,POIN655,2406
BEIS,ACAS,27/07/2022,TELEPHONES,DDAT,ATOS IT SERVICES UK LIMITED,POIN655,41.98
BEIS,ACAS,27/07/2022,TELEPHONES,DDAT,ATOS IT SERVICES UK LIMITED,POIN655,72.06
BEIS,ACAS,28/07/2022,CONTRACTOR OFF-PAYROLL IN IR35,DDAT,ALEXANDER MANN SOLUTIONS LTD,POIN656,3541.62
BEIS,ACAS,31/07/2022,PROFESSIONAL FEES,DDAT,VERSION 1 SOLUTIONS LTD,POIN657,6490
BEIS,ACAS,29/07/2022,EXTERNAL LEARNING - CSL,ODHR,HEMSLEY FRASER GROUP LTD,POIN658,660
BEIS,ACAS,13/07/2022,OCCUPATIONAL HEALTH SERVICE,FEP,FLEXIFORM BUSINESS FURNITURE LTD,POIN659,896.2
BEIS,ACAS,31/07/2022,PROFESSIONAL FEES,DDAT,VERSION 1 SOLUTIONS LTD,POIN660,9946.2
BEIS,ACAS,04/08/2022,PROFFESIONAL/SPECIALIST ADVICE,DELIVERY,IFORCE SECURITY LIMITED,POIN661,4560
BEIS,ACAS,04/08/2022,MANAGED SERVICE Off-PAYROLL WK,DDAT,ALEXANDER MANN SOLUTIONS LTD,POIN662,17043.6
BEIS,ACAS,04/08/2022,PROFESSIONAL FEES,FEP,UK SHARED BUSINESS SERVICES LTD,POIN663,1300
BEIS,ACAS,03/08/2022,OCCUPATIONAL HEALTH SERVICE,FEP,FLEXIFORM BUSINESS FURNITURE LTD,POIN664,507.6
BEIS,ACAS,31/07/2022,PUBLICATIONS AND PERIODICALS,STRATEGY,RESTORE RECORDS MANAGEMENT,POIN665,279.14
BEIS,ACAS,14/07/2022,AGENCY STAFF,SPPC,ALEXANDER MANN SOLUTIONS LTD,POIN666,1202.16
BEIS,ACAS,14/07/2022,AGENCY STAFF,SPPC,ALEXANDER MANN SOLUTIONS LTD,POIN666,317.36
BEIS,ACAS,04/08/2022,CONTRACTOR OFF-PAYROLL IN IR35,DDAT,ALEXANDER MANN SOLUTIONS LTD,POIN668,1770.82
BEIS,ACAS,11/08/2022,EXTERNAL LEARNING,ODHR,GOVERNMENT EXCHANGE,POIN670,684
BEIS,ACAS,11/08/2022,AGENCY STAFF,ODHR,ALEXANDER MANN SOLUTIONS LTD,POIN671,4003.44
BEIS,ACAS,11/08/2022,EXTERNAL LEARNING - CSL,ODHR,QAIQ,POIN672,2675.23
BEIS,ACAS,11/08/2022,EXTERNAL LEARNING - CSL,ODHR,QAIQ,POIN672,2675.23
BEIS,ACAS,04/08/2022,AGENCY STAFF,ODHR,ALEXANDER MANN SOLUTIONS LTD,POIN673,4003.44
BEIS,ACAS,31/07/2022,PROFESSIONAL FEES,DELIVERY,LANGUAGE EMPIRE LTD,POIN674,2040.31
BEIS,ACAS,31/07/2022,PROFESSIONAL FEES,DELIVERY,LANGUAGE EMPIRE LTD,POIN674,2040.31
BEIS,ACAS,30/06/2022,PROFESSIONAL FEES,DELIVERY,LANGUAGE EMPIRE LTD,POIN675,2514.44
BEIS,ACAS,30/06/2022,PROFESSIONAL FEES,DELIVERY,LANGUAGE EMPIRE LTD,POIN675,2514.44
BEIS,ACAS,10/08/2022,COURIERS,DDAT,RESTORE TECHNOLOGY,POIN677,3339.65
BEIS,ACAS,10/08/2022,COURIERS,DDAT,RESTORE TECHNOLOGY,POIN677,1134
BEIS,ACAS,10/08/2022,SYSTEM/EQUIPMENT MAINTENANCE,DDAT,RESTORE TECHNOLOGY,POIN677,23.4
BEIS,ACAS,10/08/2022,PROFESSIONAL FEES,DDAT,RESTORE TECHNOLOGY,POIN677,163.8
BEIS,ACAS,10/08/2022,PROFESSIONAL FEES,DDAT,RESTORE TECHNOLOGY,POIN677,70.2
BEIS,ACAS,10/08/2022,PROFESSIONAL FEES,DDAT,RESTORE TECHNOLOGY,POIN677,7.8
BEIS,ACAS,10/08/2022,PROFESSIONAL FEES,DDAT,RESTORE TECHNOLOGY,POIN677,39
BEIS,ACAS,18/08/2022,AGENCY STAFF,ODHR,ALEXANDER MANN SOLUTIONS LTD,POIN679,4003.44
BEIS,ACAS,17/08/2022,PROFESSIONAL FEES,DDAT,RESTORE TECHNOLOGY,POIN680,7.8
BEIS,ACAS,17/08/2022,PROFESSIONAL FEES,DDAT,RESTORE TECHNOLOGY,POIN680,23.4
BEIS,ACAS,17/08/2022,PROFESSIONAL FEES,DDAT,RESTORE TECHNOLOGY,POIN680,202.8
BEIS,ACAS,17/08/2022,PROFESSIONAL FEES,DDAT,RESTORE TECHNOLOGY,POIN680,444
BEIS,ACAS,17/08/2022,ASSETS DISPOSAL COSTS,DDAT,RESTORE TECHNOLOGY,POIN680,48
BEIS,ACAS,17/08/2022,PROFESSIONAL FEES,DDAT,RESTORE TECHNOLOGY,POIN680,78
BEIS,ACAS,17/08/2022,PROFESSIONAL FEES,DDAT,RESTORE TECHNOLOGY,POIN680,858
BEIS,ACAS,17/08/2022,PROFESSIONAL FEES,DDAT,RESTORE TECHNOLOGY,POIN680,335.4
BEIS,ACAS,17/08/2022,PROFESSIONAL FEES,DDAT,RESTORE TECHNOLOGY,POIN680,36
BEIS,ACAS,31/07/2022,MANAGED SERVICE Off-PAYROLL WK,DELIVERY,TISSKI LTD,POIN681,33288
BEIS,ACAS,10/08/2022,GOVT SOLICITORS FEES,CO,GOVERNMENT LEGAL DEPARTMENT,POIN682,1232.16
BEIS,ACAS,15/08/2022,OCCUPATIONAL HEALTH SERVICE,FEP,FLEXIFORM BUSINESS FURNITURE LTD,POIN683,666.6
BEIS,ACAS,19/08/2022,OCCUPATIONAL HEALTH SERVICE,FEP,FLEXIFORM BUSINESS FURNITURE LTD,POIN684,482.4
BEIS,ACAS,03/08/2022,STAFF RECRUITMENT COSTS,ODHR,HAYS RECRUITMENT,POIN685,2132.4
BEIS,ACAS,10/08/2022,STAFF RECRUITMENT COSTS,ODHR,HAYS RECRUITMENT,POIN686,2665.5
BEIS,ACAS,10/08/2022,STAFF RECRUITMENT COSTS,ODHR,HAYS RECRUITMENT,POIN687,2132.4
BEIS,ACAS,17/08/2022,STAFF RECRUITMENT COSTS,ODHR,HAYS RECRUITMENT,POIN688,2665.5
BEIS,ACAS,17/08/2022,STAFF RECRUITMENT COSTS,ODHR,HAYS RECRUITMENT,POIN689,2132.4
BEIS,ACAS,11/08/2022,CONTRACTOR OFF-PAYROLL IN IR35,DDAT,ALEXANDER MANN SOLUTIONS LTD,POIN690,3541.62
BEIS,ACAS,12/08/2022,PROFESSIONAL FEES,DDAT,BIG BLUE DOOR,POIN691,900
BEIS,ACAS,10/08/2022,COMPUTER HARDWARE,DDAT,RESTORE TECHNOLOGY,POIN693,837
BEIS,ACAS,10/08/2022,COMPUTER HARDWARE,DDAT,RESTORE TECHNOLOGY,POIN693,93
BEIS,ACAS,15/08/2022,PROFESSIONAL FEES,DDAT,ASTEC ASSISTIVE TEC SOLUTIONS LTD,POIN694,150
BEIS,ACAS,15/08/2022,PROFESSIONAL FEES,DDAT,ASTEC ASSISTIVE TEC SOLUTIONS LTD,POIN694,150
BEIS,ACAS,17/08/2022,PROFESSIONAL FEES,DDAT,ASTEC ASSISTIVE TEC SOLUTIONS LTD,POIN695,600
BEIS,ACAS,17/08/2022,PROFESSIONAL FEES,DDAT,ASTEC ASSISTIVE TEC SOLUTIONS LTD,POIN696,600
BEIS,ACAS,18/08/2022,CONTRACTOR OFF-PAYROLL IN IR35,DDAT,ALEXANDER MANN SOLUTIONS LTD,POIN697,3541.62
BEIS,ACAS,27/06/2022,COMPUTER HARDWARE,DDAT,RESTORE TECHNOLOGY,POIN698,837
BEIS,ACAS,27/06/2022,COMPUTER HARDWARE,DDAT,RESTORE TECHNOLOGY,POIN698,93
BEIS,ACAS,20/08/2022,TELEPHONES,DDAT,BRITISH TELECOMMUNICATIONS PLC,POIN699,8499.6
BEIS,ACAS,20/08/2022,TELEPHONES,DDAT,BRITISH TELECOMMUNICATIONS PLC,POIN699,7487.26
BEIS,ACAS,22/08/2022,RECORDS STORAGE,CO,KELLY S STORAGE LTD,POIN700,18000
BEIS,ACAS,24/08/2022,COURIERS,DDAT,RESTORE TECHNOLOGY,POIN701,1979.15
BEIS,ACAS,24/08/2022,COURIERS,DDAT,RESTORE TECHNOLOGY,POIN701,546
BEIS,ACAS,24/08/2022,SYSTEM/EQUIPMENT MAINTENANCE,DDAT,RESTORE TECHNOLOGY,POIN701,52.2
BEIS,ACAS,24/08/2022,PROFESSIONAL FEES,DDAT,RESTORE TECHNOLOGY,POIN701,85.8
BEIS,ACAS,24/08/2022,PROFESSIONAL FEES,DDAT,RESTORE TECHNOLOGY,POIN701,23.4
BEIS,ACAS,24/08/2022,PROFESSIONAL FEES,DDAT,RESTORE TECHNOLOGY,POIN701,450
BEIS,ACAS,24/08/2022,PROFESSIONAL FEES,DDAT,RESTORE TECHNOLOGY,POIN701,62.4
BEIS,ACAS,24/08/2022,PROFESSIONAL FEES,DDAT,RESTORE TECHNOLOGY,POIN701,15.6
BEIS,ACAS,24/08/2022,PROFESSIONAL FEES,DDAT,RESTORE TECHNOLOGY,POIN702,336
BEIS,ACAS,24/08/2022,PROFESSIONAL FEES,DDAT,RESTORE TECHNOLOGY,POIN702,62.4
BEIS,ACAS,24/08/2022,PROFESSIONAL FEES,DDAT,RESTORE TECHNOLOGY,POIN702,24
BEIS,ACAS,24/08/2022,PROFESSIONAL FEES,DDAT,RESTORE TECHNOLOGY,POIN702,51
BEIS,ACAS,24/08/2022,PROFESSIONAL FEES,DDAT,RESTORE TECHNOLOGY,POIN702,540
BEIS,ACAS,25/08/2022,AGENCY STAFF,ODHR,ALEXANDER MANN SOLUTIONS LTD,POIN703,4003.44
BEIS,ACAS,03/08/2022,STAFF RECRUITMENT COSTS,ODHR,HAYS RECRUITMENT,POIN704,2665.5
BEIS,ACAS,13/07/2022,STAFF RECRUITMENT COSTS,ODHR,HAYS RECRUITMENT,POIN705,2665.5
BEIS,ACAS,30/08/2022,EXTERNAL LEARNING,ODHR,HAPPY COMPUTERS LIMITED,POIN707,252
BEIS,ACAS,24/08/2022,OCCUPATIONAL HEALTH SERVICE,FEP,FLEXIFORM BUSINESS FURNITURE LTD,POIN708,482.4
BEIS,ACAS,01/08/2022,PERSONAL EXPENSE,SOUTH&LONDON,NAME / DESCRIPTION WITHHELD,EXPS823,165.6
BEIS,ACAS,01/08/2022,PERSONAL EXPENSE,SOUTH&LONDON,NAME / DESCRIPTION WITHHELD,EXPS823,126
BEIS,ACAS,01/08/2022,PERSONAL EXPENSE,SOUTH&LONDON,NAME / DESCRIPTION WITHHELD,EXPS823,6.4
BEIS,ACAS,01/08/2022,PERSONAL EXPENSE,SOUTH&LONDON,NAME / DESCRIPTION WITHHELD,EXPS823,12
BEIS,ACAS,01/08/2022,PERSONAL EXPENSE,SOUTH&LONDON,NAME / DESCRIPTION WITHHELD,EXPS823,10
BEIS,ACAS,01/08/2022,PERSONAL EXPENSE,SOUTH&LONDON,NAME / DESCRIPTION WITHHELD,EXPS823,10
BEIS,ACAS,01/08/2022,PERSONAL EXPENSE,SOUTH&LONDON,NAME / DESCRIPTION WITHHELD,EXPS823,5
BEIS,ACAS,01/08/2022,PERSONAL EXPENSE,SOUTH&LONDON,NAME / DESCRIPTION WITHHELD,EXPS823,10
BEIS,ACAS,01/08/2022,PERSONAL EXPENSE,SOUTH&LONDON,NAME / DESCRIPTION WITHHELD,EXPS823,35
BEIS,ACAS,01/08/2022,PERSONAL EXPENSE,SOUTH&LONDON,NAME / DESCRIPTION WITHHELD,EXPS823,10
BEIS,ACAS,01/08/2022,PERSONAL EXPENSE,SOUTH&LONDON,NAME / DESCRIPTION WITHHELD,EXPS828,210.6
BEIS,ACAS,01/08/2022,PERSONAL EXPENSE,SOUTH&LONDON,NAME / DESCRIPTION WITHHELD,EXPS828,5
BEIS,ACAS,01/08/2022,PERSONAL EXPENSE,SOUTH&LONDON,NAME / DESCRIPTION WITHHELD,EXPS828,30
BEIS,ACAS,01/08/2022,PERSONAL EXPENSE,SOUTH&LONDON,NAME / DESCRIPTION WITHHELD,EXPS828,34.95
BEIS,ACAS,01/08/2022,PERSONAL EXPENSE,WALES&MID,NAME / DESCRIPTION WITHHELD,EXPS831,276.3
BEIS,ACAS,01/08/2022,PERSONAL EXPENSE,WALES&MID,NAME / DESCRIPTION WITHHELD,EXPS831,84.15
BEIS,ACAS,01/08/2022,PERSONAL EXPENSE,WALES&MID,NAME / DESCRIPTION WITHHELD,EXPS831,10
BEIS,ACAS,01/08/2022,PERSONAL EXPENSE,WALES&MID,NAME / DESCRIPTION WITHHELD,EXPS831,20
BEIS,ACAS,02/08/2022,PERSONAL EXPENSE,SOUTH&LONDON,NAME / DESCRIPTION WITHHELD,EXPS835,453.1
BEIS,ACAS,03/08/2022,PERSONAL EXPENSE,DELIVERY,NAME / DESCRIPTION WITHHELD,EXPS837,530.46
BEIS,ACAS,03/08/2022,PERSONAL EXPENSE,SOUTH&LONDON,NAME / DESCRIPTION WITHHELD,EXPS838,9.45
BEIS,ACAS,03/08/2022,PERSONAL EXPENSE,SOUTH&LONDON,NAME / DESCRIPTION WITHHELD,EXPS838,227.25
BEIS,ACAS,03/08/2022,PERSONAL EXPENSE,SOUTH&LONDON,NAME / DESCRIPTION WITHHELD,EXPS838,3.4
BEIS,ACAS,03/08/2022,PERSONAL EXPENSE,SOUTH&LONDON,NAME / DESCRIPTION WITHHELD,EXPS838,139.54
BEIS,ACAS,03/08/2022,PERSONAL EXPENSE,SOUTH&LONDON,NAME / DESCRIPTION WITHHELD,EXPS838,25
BEIS,ACAS,03/08/2022,PERSONAL EXPENSE,SOUTH&LONDON,NAME / DESCRIPTION WITHHELD,EXPS838,5
BEIS,ACAS,03/08/2022,PERSONAL EXPENSE,SOUTH&LONDON,NAME / DESCRIPTION WITHHELD,EXPS838,10
BEIS,ACAS,03/08/2022,PERSONAL EXPENSE,SOUTH&LONDON,NAME / DESCRIPTION WITHHELD,EXPS838,10
BEIS,ACAS,03/08/2022,PERSONAL EXPENSE,SOUTH&LONDON,NAME / DESCRIPTION WITHHELD,EXPS838,35
BEIS,ACAS,03/08/2022,PERSONAL EXPENSE,NORTH&MID,NAME / DESCRIPTION WITHHELD,EXPS841,426.6
BEIS,ACAS,03/08/2022,PERSONAL EXPENSE,NORTH&MID,NAME / DESCRIPTION WITHHELD,EXPS841,5
BEIS,ACAS,03/08/2022,PERSONAL EXPENSE,NORTH&MID,NAME / DESCRIPTION WITHHELD,EXPS841,7
BEIS,ACAS,29/07/2022,PERSONAL EXPENSE,SOUTH&LONDON,NAME / DESCRIPTION WITHHELD,EXPS843,376.2
BEIS,ACAS,29/07/2022,PERSONAL EXPENSE,SOUTH&LONDON,NAME / DESCRIPTION WITHHELD,EXPS843,105
BEIS,ACAS,29/07/2022,PERSONAL EXPENSE,SOUTH&LONDON,NAME / DESCRIPTION WITHHELD,EXPS843,15
BEIS,ACAS,29/07/2022,PERSONAL EXPENSE,SOUTH&LONDON,NAME / DESCRIPTION WITHHELD,EXPS843,50
BEIS,ACAS,29/07/2022,PERSONAL EXPENSE,SOUTH&LONDON,NAME / DESCRIPTION WITHHELD,EXPS843,10
BEIS,ACAS,29/07/2022,PERSONAL EXPENSE,SOUTH&LONDON,NAME / DESCRIPTION WITHHELD,EXPS843,33
BEIS,ACAS,04/08/2022,PERSONAL EXPENSE,ODHR,NAME / DESCRIPTION WITHHELD,EXPS847,52.2
BEIS,ACAS,04/08/2022,PERSONAL EXPENSE,ODHR,NAME / DESCRIPTION WITHHELD,EXPS847,105
BEIS,ACAS,04/08/2022,PERSONAL EXPENSE,ODHR,NAME / DESCRIPTION WITHHELD,EXPS847,10
BEIS,ACAS,04/08/2022,PERSONAL EXPENSE,ODHR,NAME / DESCRIPTION WITHHELD,EXPS847,5
BEIS,ACAS,04/08/2022,PERSONAL EXPENSE,ODHR,NAME / DESCRIPTION WITHHELD,EXPS847,42
BEIS,ACAS,04/08/2022,PERSONAL EXPENSE,ODHR,NAME / DESCRIPTION WITHHELD,EXPS847,32.05
BEIS,ACAS,04/08/2022,PERSONAL EXPENSE,ODHR,NAME / DESCRIPTION WITHHELD,EXPS847,48.73
BEIS,ACAS,08/08/2022,PERSONAL EXPENSE,NORTH&MID,NAME / DESCRIPTION WITHHELD,EXPS855,95.4
BEIS,ACAS,08/08/2022,PERSONAL EXPENSE,NORTH&MID,NAME / DESCRIPTION WITHHELD,EXPS855,554.4
BEIS,ACAS,08/08/2022,PERSONAL EXPENSE,NORTH&MID,NAME / DESCRIPTION WITHHELD,EXPS855,14.2
BEIS,ACAS,08/08/2022,PERSONAL EXPENSE,NORTH&MID,NAME / DESCRIPTION WITHHELD,EXPS855,20
BEIS,ACAS,08/08/2022,PERSONAL EXPENSE,NORTH&MID,NAME / DESCRIPTION WITHHELD,EXPS855,10
BEIS,ACAS,08/08/2022,PERSONAL EXPENSE,NORTH&MID,NAME / DESCRIPTION WITHHELD,EXPS855,35
BEIS,ACAS,08/08/2022,PERSONAL EXPENSE,NORTH&MID,NAME / DESCRIPTION WITHHELD,EXPS855,30
BEIS,ACAS,05/08/2022,PERSONAL EXPENSE,WALES&MID,NAME / DESCRIPTION WITHHELD,EXPS862,201.6
BEIS,ACAS,05/08/2022,PERSONAL EXPENSE,WALES&MID,NAME / DESCRIPTION WITHHELD,EXPS862,36
BEIS,ACAS,05/08/2022,PERSONAL EXPENSE,WALES&MID,NAME / DESCRIPTION WITHHELD,EXPS862,24
BEIS,ACAS,05/08/2022,PERSONAL EXPENSE,WALES&MID,NAME / DESCRIPTION WITHHELD,EXPS862,7
BEIS,ACAS,05/08/2022,PERSONAL EXPENSE,WALES&MID,NAME / DESCRIPTION WITHHELD,EXPS862,50
BEIS,ACAS,05/08/2022,PERSONAL EXPENSE,WALES&MID,NAME / DESCRIPTION WITHHELD,EXPS862,10
BEIS,ACAS,05/08/2022,PERSONAL EXPENSE,WALES&MID,NAME / DESCRIPTION WITHHELD,EXPS862,140
BEIS,ACAS,05/08/2022,PERSONAL EXPENSE,WALES&MID,NAME / DESCRIPTION WITHHELD,EXPS862,20
BEIS,ACAS,11/08/2022,PERSONAL EXPENSE,SCOTLAND,NAME / DESCRIPTION WITHHELD,EXPS869,279
BEIS,ACAS,11/08/2022,PERSONAL EXPENSE,SCOTLAND,NAME / DESCRIPTION WITHHELD,EXPS869,10
BEIS,ACAS,11/08/2022,PERSONAL EXPENSE,SCOTLAND,NAME / DESCRIPTION WITHHELD,EXPS869,70
BEIS,ACAS,11/08/2022,PERSONAL EXPENSE,SCOTLAND,NAME / DESCRIPTION WITHHELD,EXPS869,20
BEIS,ACAS,15/08/2022,PERSONAL EXPENSE,SOUTH&LONDON,NAME / DESCRIPTION WITHHELD,EXPS879,134.1
BEIS,ACAS,15/08/2022,PERSONAL EXPENSE,SOUTH&LONDON,NAME / DESCRIPTION WITHHELD,EXPS879,109.8
BEIS,ACAS,15/08/2022,PERSONAL EXPENSE,SOUTH&LONDON,NAME / DESCRIPTION WITHHELD,EXPS879,7.6
BEIS,ACAS,15/08/2022,PERSONAL EXPENSE,SOUTH&LONDON,NAME / DESCRIPTION WITHHELD,EXPS879,5
BEIS,ACAS,15/08/2022,PERSONAL EXPENSE,SOUTH&LONDON,NAME / DESCRIPTION WITHHELD,EXPS879,5
BEIS,ACAS,15/08/2022,PERSONAL EXPENSE,SOUTH&LONDON,NAME / DESCRIPTION WITHHELD,EXPS879,10
BEIS,ACAS,15/08/2022,PERSONAL EXPENSE,SOUTH&LONDON,NAME / DESCRIPTION WITHHELD,EXPS879,10
BEIS,ACAS,15/08/2022,PERSONAL EXPENSE,SOUTH&LONDON,NAME / DESCRIPTION WITHHELD,EXPS879,10
BEIS,ACAS,15/08/2022,PERSONAL EXPENSE,SOUTH&LONDON,NAME / DESCRIPTION WITHHELD,EXPS879,35
BEIS,ACAS,16/08/2022,PERSONAL EXPENSE,DELIVERY,NAME / DESCRIPTION WITHHELD,EXPS881,218.25
BEIS,ACAS,16/08/2022,PERSONAL EXPENSE,DELIVERY,NAME / DESCRIPTION WITHHELD,EXPS881,35
BEIS,ACAS,16/08/2022,PERSONAL EXPENSE,DELIVERY,NAME / DESCRIPTION WITHHELD,EXPS881,30
BEIS,ACAS,16/08/2022,PERSONAL EXPENSE,DELIVERY,NAME / DESCRIPTION WITHHELD,EXPS881,67.5
BEIS,ACAS,16/08/2022,PERSONAL EXPENSE,SOUTH&LONDON,NAME / DESCRIPTION WITHHELD,EXPS882,100.8
BEIS,ACAS,16/08/2022,PERSONAL EXPENSE,SOUTH&LONDON,NAME / DESCRIPTION WITHHELD,EXPS882,70.2
BEIS,ACAS,16/08/2022,PERSONAL EXPENSE,SOUTH&LONDON,NAME / DESCRIPTION WITHHELD,EXPS882,19
BEIS,ACAS,16/08/2022,PERSONAL EXPENSE,SOUTH&LONDON,NAME / DESCRIPTION WITHHELD,EXPS882,70
BEIS,ACAS,16/08/2022,PERSONAL EXPENSE,SOUTH&LONDON,NAME / DESCRIPTION WITHHELD,EXPS882,10
BEIS,ACAS,16/08/2022,PERSONAL EXPENSE,SOUTH&LONDON,NAME / DESCRIPTION WITHHELD,EXPS882,10
BEIS,ACAS,01/08/2022,PROFESSIONAL FEES,DDAT,TISSKI LTD,PINV882,6340
BEIS,ACAS,22/06/2022,PROFESSIONAL FEES,FEP,GOVERNMENT PROPERTY AGENCY,PINV884,360
BEIS,ACAS,17/08/2022,PERSONAL EXPENSE,SPPC,NAME / DESCRIPTION WITHHELD,EXPS888,36
BEIS,ACAS,17/08/2022,PERSONAL EXPENSE,SPPC,NAME / DESCRIPTION WITHHELD,EXPS888,2.5
BEIS,ACAS,17/08/2022,PERSONAL EXPENSE,SPPC,NAME / DESCRIPTION WITHHELD,EXPS888,11
BEIS,ACAS,17/08/2022,PERSONAL EXPENSE,SPPC,NAME / DESCRIPTION WITHHELD,EXPS888,25
BEIS,ACAS,17/08/2022,PERSONAL EXPENSE,SPPC,NAME / DESCRIPTION WITHHELD,EXPS888,2.5
BEIS,ACAS,17/08/2022,PERSONAL EXPENSE,SPPC,NAME / DESCRIPTION WITHHELD,EXPS888,33
BEIS,ACAS,17/08/2022,PERSONAL EXPENSE,SPPC,NAME / DESCRIPTION WITHHELD,EXPS888,10
BEIS,ACAS,17/08/2022,PERSONAL EXPENSE,SPPC,NAME / DESCRIPTION WITHHELD,EXPS888,70
BEIS,ACAS,17/08/2022,PERSONAL EXPENSE,SPPC,NAME / DESCRIPTION WITHHELD,EXPS888,10
BEIS,ACAS,17/08/2022,PERSONAL EXPENSE,SPPC,NAME / DESCRIPTION WITHHELD,EXPS888,2.5
BEIS,ACAS,17/08/2022,PERSONAL EXPENSE,SPPC,NAME / DESCRIPTION WITHHELD,EXPS888,11
BEIS,ACAS,17/08/2022,PERSONAL EXPENSE,SPPC,NAME / DESCRIPTION WITHHELD,EXPS888,10
BEIS,ACAS,17/08/2022,PERSONAL EXPENSE,SPPC,NAME / DESCRIPTION WITHHELD,EXPS888,10
BEIS,ACAS,17/08/2022,PERSONAL EXPENSE,SPPC,NAME / DESCRIPTION WITHHELD,EXPS888,11
BEIS,ACAS,17/08/2022,PERSONAL EXPENSE,SPPC,NAME / DESCRIPTION WITHHELD,EXPS888,5
BEIS,ACAS,17/08/2022,PERSONAL EXPENSE,SPPC,NAME / DESCRIPTION WITHHELD,EXPS888,25
BEIS,ACAS,17/08/2022,PERSONAL EXPENSE,SPPC,NAME / DESCRIPTION WITHHELD,EXPS888,35
BEIS,ACAS,05/08/2022,PERSONAL EXPENSE,DELIVERY,NAME / DESCRIPTION WITHHELD,EXPS889,135.9
BEIS,ACAS,05/08/2022,PERSONAL EXPENSE,DELIVERY,NAME / DESCRIPTION WITHHELD,EXPS889,102.6
BEIS,ACAS,05/08/2022,PERSONAL EXPENSE,DELIVERY,NAME / DESCRIPTION WITHHELD,EXPS889,11.4
BEIS,ACAS,05/08/2022,PERSONAL EXPENSE,DELIVERY,NAME / DESCRIPTION WITHHELD,EXPS889,161.5
BEIS,ACAS,05/08/2022,PERSONAL EXPENSE,DELIVERY,NAME / DESCRIPTION WITHHELD,EXPS889,25.1
BEIS,ACAS,05/08/2022,PERSONAL EXPENSE,DELIVERY,NAME / DESCRIPTION WITHHELD,EXPS889,26.8
BEIS,ACAS,05/08/2022,PERSONAL EXPENSE,DELIVERY,NAME / DESCRIPTION WITHHELD,EXPS889,105
BEIS,ACAS,05/08/2022,PERSONAL EXPENSE,DELIVERY,NAME / DESCRIPTION WITHHELD,EXPS889,15
BEIS,ACAS,05/08/2022,PERSONAL EXPENSE,DELIVERY,NAME / DESCRIPTION WITHHELD,EXPS889,10
BEIS,ACAS,05/08/2022,PERSONAL EXPENSE,DELIVERY,NAME / DESCRIPTION WITHHELD,EXPS889,20
BEIS,ACAS,20/07/2022,PROFESSIONAL FEES,DDAT,ATOS IT SERVICES UK LIMITED,PINV889,20917.85
BEIS,ACAS,22/07/2022,MEMBERSHIP FEES,STRATEGY,IRMS LTD,PINV891,399
BEIS,ACAS,18/08/2022,PERSONAL EXPENSE,SOUTH&LONDON,NAME / DESCRIPTION WITHHELD,EXPS892,70.2
BEIS,ACAS,18/08/2022,PERSONAL EXPENSE,SOUTH&LONDON,NAME / DESCRIPTION WITHHELD,EXPS892,214.65
BEIS,ACAS,18/08/2022,PERSONAL EXPENSE,SOUTH&LONDON,NAME / DESCRIPTION WITHHELD,EXPS892,10
BEIS,ACAS,18/08/2022,PERSONAL EXPENSE,SOUTH&LONDON,NAME / DESCRIPTION WITHHELD,EXPS892,7.5
BEIS,ACAS,29/07/2022,VENUE HIRE (REC VAT),NORTH&MID,CALDER CONFERENCES LTD,PINV894,218.88
BEIS,ACAS,29/07/2022,VENUE HIRE (REC VAT),NORTH&MID,CALDER CONFERENCES LTD,PINV894,330
BEIS,ACAS,29/07/2022,VENUE HIRE (REC VAT),NORTH&MID,CALDER CONFERENCES LTD,PINV894,264
BEIS,ACAS,29/07/2022,VENUE HIRE (REC VAT),SOUTH&LONDON,CALDER CONFERENCES LTD,PINV894,432
BEIS,ACAS,29/07/2022,VENUE HIRE (REC VAT),WALES&MID,CALDER CONFERENCES LTD,PINV894,407
BEIS,ACAS,29/07/2022,PUBLIC TRANSPORT & PARKING,WALES&MID,CALDER CONFERENCES LTD,PINV894,77
BEIS,ACAS,26/07/2022,PROFESSIONAL FEES,FEP,GOVERNMENT PROPERTY AGENCY,PINV895,3866.54
BEIS,ACAS,29/07/2022,MOBILE PHONES,DDAT,TELEFONICA UK LTD (O2),PINV896,538.28
BEIS,ACAS,29/07/2022,MOBILE PHONES,DDAT,TELEFONICA UK LTD (O2),PINV896,59.81
BEIS,ACAS,02/08/2022,EQUIPMENT RENTAL,NORTH&MID,EDEN SPRINGS UK LTD,PINV897,380.88
BEIS,ACAS,01/08/2022,SOFTWARE & LICENCES,DELIVERY,GOTO TECHNOLOGIES UK LTD,PINV899,3240
BEIS,ACAS,03/08/2022,ARBITRATORS FEES,DELIVERY,ROBERT JOHN ALLAN,PINV903,1007.87
BEIS,ACAS,31/07/2022,PUBLIC TRANSPORT & PARKING,SPPC,CORPORATE TRAVEL MANAGEMENTLIMITED,PINV904,149.55
BEIS,ACAS,31/07/2022,PUBLIC TRANSPORT & PARKING,DELIVERY,CORPORATE TRAVEL MANAGEMENTLIMITED,PINV904,247.05
BEIS,ACAS,31/07/2022,PUBLIC TRANSPORT & PARKING,ODHR,CORPORATE TRAVEL MANAGEMENTLIMITED,PINV904,148.85
BEIS,ACAS,31/07/2022,PUBLIC TRANSPORT & PARKING,SPPC,CORPORATE TRAVEL MANAGEMENTLIMITED,PINV904,82.65
BEIS,ACAS,31/07/2022,PUBLIC TRANSPORT & PARKING,NORTH&MID,CORPORATE TRAVEL MANAGEMENTLIMITED,PINV904,36.75
BEIS,ACAS,31/07/2022,HOTEL EXPENSES,NORTH&MID,CORPORATE TRAVEL MANAGEMENTLIMITED,PINV904,71.12
BEIS,ACAS,31/07/2022,PUBLIC TRANSPORT & PARKING,DELIVERY,CORPORATE TRAVEL MANAGEMENTLIMITED,PINV904,221.45
BEIS,ACAS,31/07/2022,PUBLIC TRANSPORT & PARKING,DELIVERY,CORPORATE TRAVEL MANAGEMENTLIMITED,PINV904,67.35
BEIS,ACAS,31/07/2022,HOTEL EXPENSES,SPPC,CORPORATE TRAVEL MANAGEMENTLIMITED,PINV904,1.12
BEIS,ACAS,31/07/2022,PUBLIC TRANSPORT & PARKING,ODHR,CORPORATE TRAVEL MANAGEMENTLIMITED,PINV904,95.85
BEIS,ACAS,31/07/2022,HOTEL EXPENSES,STRATEGY,CORPORATE TRAVEL MANAGEMENTLIMITED,PINV904,88.56
BEIS,ACAS,31/07/2022,HOTEL EXPENSES,STRATEGY,CORPORATE TRAVEL MANAGEMENTLIMITED,PINV904,89.12
BEIS,ACAS,31/07/2022,PUBLIC TRANSPORT & PARKING,SPPC,CORPORATE TRAVEL MANAGEMENTLIMITED,PINV904,48.85
BEIS,ACAS,31/07/2022,PUBLIC TRANSPORT & PARKING,NORTH&MID,CORPORATE TRAVEL MANAGEMENTLIMITED,PINV904,79.95
BEIS,ACAS,31/07/2022,HOTEL EXPENSES,SOUTH&LONDON,CORPORATE TRAVEL MANAGEMENTLIMITED,PINV904,1.12
BEIS,ACAS,31/07/2022,HOTEL EXPENSES,SOUTH&LONDON,CORPORATE TRAVEL MANAGEMENTLIMITED,PINV904,248.46
BEIS,ACAS,31/07/2022,HOTEL EXPENSES,WALES&MID,CORPORATE TRAVEL MANAGEMENTLIMITED,PINV904,1.12
BEIS,ACAS,31/07/2022,PUBLIC TRANSPORT & PARKING,SPPC,CORPORATE TRAVEL MANAGEMENTLIMITED,PINV904,46.45
BEIS,ACAS,31/07/2022,PUBLIC TRANSPORT & PARKING,DELIVERY,CORPORATE TRAVEL MANAGEMENTLIMITED,PINV904,221.45
BEIS,ACAS,31/07/2022,PUBLIC TRANSPORT & PARKING,SOUTH&LONDON,CORPORATE TRAVEL MANAGEMENTLIMITED,PINV904,41.95
BEIS,ACAS,31/07/2022,PUBLIC TRANSPORT & PARKING,SOUTH&LONDON,CORPORATE TRAVEL MANAGEMENTLIMITED,PINV904,41.95
BEIS,ACAS,31/07/2022,PUBLIC TRANSPORT & PARKING,SOUTH&LONDON,CORPORATE TRAVEL MANAGEMENTLIMITED,PINV904,41.95
BEIS,ACAS,31/07/2022,PUBLIC TRANSPORT & PARKING,SOUTH&LONDON,CORPORATE TRAVEL MANAGEMENTLIMITED,PINV904,41.95
BEIS,ACAS,31/07/2022,PUBLIC TRANSPORT & PARKING,SOUTH&LONDON,CORPORATE TRAVEL MANAGEMENTLIMITED,PINV904,41.95
BEIS,ACAS,31/07/2022,PUBLIC TRANSPORT & PARKING,SOUTH&LONDON,CORPORATE TRAVEL MANAGEMENTLIMITED,PINV904,41.95
BEIS,ACAS,31/07/2022,PUBLIC TRANSPORT & PARKING,FEP,CORPORATE TRAVEL MANAGEMENTLIMITED,PINV904,56.25
BEIS,ACAS,31/07/2022,PUBLIC TRANSPORT & PARKING,FEP,CORPORATE TRAVEL MANAGEMENTLIMITED,PINV904,174.15
BEIS,ACAS,31/07/2022,HOTEL EXPENSES,SCOTLAND,CORPORATE TRAVEL MANAGEMENTLIMITED,PINV904,85.12
BEIS,ACAS,31/07/2022,HOTEL EXPENSES,WALES&MID,CORPORATE TRAVEL MANAGEMENTLIMITED,PINV904,71.12
BEIS,ACAS,31/07/2022,HOTEL EXPENSES,SOUTH&LONDON,CORPORATE TRAVEL MANAGEMENTLIMITED,PINV904,71.12
BEIS,ACAS,31/07/2022,HOTEL EXPENSES,SOUTH&LONDON,CORPORATE TRAVEL MANAGEMENTLIMITED,PINV904,73.12
BEIS,ACAS,31/07/2022,HOTEL EXPENSES,WALES&MID,CORPORATE TRAVEL MANAGEMENTLIMITED,PINV904,71.12
BEIS,ACAS,31/07/2022,HOTEL EXPENSES,WALES&MID,CORPORATE TRAVEL MANAGEMENTLIMITED,PINV904,71.12
BEIS,ACAS,31/07/2022,PUBLIC TRANSPORT & PARKING,SCOTLAND,CORPORATE TRAVEL MANAGEMENTLIMITED,PINV904,39.75
BEIS,ACAS,31/07/2022,PUBLIC TRANSPORT & PARKING,SPPC,CORPORATE TRAVEL MANAGEMENTLIMITED,PINV904,93.5
BEIS,ACAS,31/07/2022,HOTEL EXPENSES,NORTH&MID,CORPORATE TRAVEL MANAGEMENTLIMITED,PINV904,67.56
BEIS,ACAS,31/07/2022,HOTEL EXPENSES,WALES&MID,CORPORATE TRAVEL MANAGEMENTLIMITED,PINV904,72.12
BEIS,ACAS,31/07/2022,HOTEL EXPENSES,DELIVERY,CORPORATE TRAVEL MANAGEMENTLIMITED,PINV904,290.42
BEIS,ACAS,31/07/2022,PUBLIC TRANSPORT & PARKING,ODHR,CORPORATE TRAVEL MANAGEMENTLIMITED,PINV904,85.45
BEIS,ACAS,31/07/2022,PUBLIC TRANSPORT & PARKING,NORTH&MID,CORPORATE TRAVEL MANAGEMENTLIMITED,PINV904,28.55
BEIS,ACAS,31/07/2022,PUBLIC TRANSPORT & PARKING,DDAT,CORPORATE TRAVEL MANAGEMENTLIMITED,PINV904,151.55
BEIS,ACAS,31/07/2022,PUBLIC TRANSPORT & PARKING,STRATEGY,CORPORATE TRAVEL MANAGEMENTLIMITED,PINV904,115.75
BEIS,ACAS,31/07/2022,PUBLIC TRANSPORT & PARKING,STRATEGY,CORPORATE TRAVEL MANAGEMENTLIMITED,PINV904,20.55
BEIS,ACAS,31/07/2022,HOTEL EXPENSES,STRATEGY,CORPORATE TRAVEL MANAGEMENTLIMITED,PINV904,1.12
BEIS,ACAS,31/07/2022,HOTEL EXPENSES,SPPC,CORPORATE TRAVEL MANAGEMENTLIMITED,PINV904,1.12
BEIS,ACAS,31/07/2022,HOTEL EXPENSES,SOUTH&LONDON,CORPORATE TRAVEL MANAGEMENTLIMITED,PINV904,179.51
BEIS,ACAS,31/07/2022,HOTEL EXPENSES,SPPC,CORPORATE TRAVEL MANAGEMENTLIMITED,PINV904,218.12
BEIS,ACAS,31/07/2022,HOTEL EXPENSES,ODHR,CORPORATE TRAVEL MANAGEMENTLIMITED,PINV904,208.62
BEIS,ACAS,31/07/2022,HOTEL EXPENSES,DELIVERY,CORPORATE TRAVEL MANAGEMENTLIMITED,PINV904,436.12
BEIS,ACAS,31/07/2022,PUBLIC TRANSPORT & PARKING,SPPC,CORPORATE TRAVEL MANAGEMENTLIMITED,PINV904,135.25
BEIS,ACAS,31/07/2022,PUBLIC TRANSPORT & PARKING,SPPC,CORPORATE TRAVEL MANAGEMENTLIMITED,PINV904,145.75
BEIS,ACAS,31/07/2022,PUBLIC TRANSPORT & PARKING,SPPC,CORPORATE TRAVEL MANAGEMENTLIMITED,PINV904,291.75
BEIS,ACAS,31/07/2022,PUBLIC TRANSPORT & PARKING,SOUTH&LONDON,CORPORATE TRAVEL MANAGEMENTLIMITED,PINV904,39.55
BEIS,ACAS,31/07/2022,PUBLIC TRANSPORT & PARKING,ODHR,CORPORATE TRAVEL MANAGEMENTLIMITED,PINV904,110.75
BEIS,ACAS,31/07/2022,HOTEL EXPENSES,SOUTH&LONDON,CORPORATE TRAVEL MANAGEMENTLIMITED,PINV904,0.96
BEIS,ACAS,31/07/2022,HOTEL EXPENSES,ODHR,CORPORATE TRAVEL MANAGEMENTLIMITED,PINV904,1.12
BEIS,ACAS,31/07/2022,PUBLIC TRANSPORT & PARKING,ODHR,CORPORATE TRAVEL MANAGEMENTLIMITED,PINV904,109.45
BEIS,ACAS,31/07/2022,HOTEL EXPENSES,WALES&MID,CORPORATE TRAVEL MANAGEMENTLIMITED,PINV904,72.12
BEIS,ACAS,31/07/2022,HOTEL EXPENSES,ODHR,CORPORATE TRAVEL MANAGEMENTLIMITED,PINV904,99.22
BEIS,ACAS,31/07/2022,HOTEL EXPENSES,NORTH&MID,CORPORATE TRAVEL MANAGEMENTLIMITED,PINV904,67.56
BEIS,ACAS,31/07/2022,HOTEL EXPENSES,NORTH&MID,CORPORATE TRAVEL MANAGEMENTLIMITED,PINV904,72.12
BEIS,ACAS,31/07/2022,HOTEL EXPENSES,WALES&MID,CORPORATE TRAVEL MANAGEMENTLIMITED,PINV904,120.12
BEIS,ACAS,31/07/2022,HOTEL EXPENSES,WALES&MID,CORPORATE TRAVEL MANAGEMENTLIMITED,PINV904,100.13
BEIS,ACAS,31/07/2022,HOTEL EXPENSES,STRATEGY,CORPORATE TRAVEL MANAGEMENTLIMITED,PINV904,101.12
BEIS,ACAS,31/07/2022,PUBLIC TRANSPORT & PARKING,SPPC,CORPORATE TRAVEL MANAGEMENTLIMITED,PINV904,94.65
BEIS,ACAS,31/07/2022,PUBLIC TRANSPORT & PARKING,SPPC,CORPORATE TRAVEL MANAGEMENTLIMITED,PINV904,64.95
BEIS,ACAS,31/07/2022,PUBLIC TRANSPORT & PARKING,DELIVERY,CORPORATE TRAVEL MANAGEMENTLIMITED,PINV904,108.05
BEIS,ACAS,31/07/2022,PUBLIC TRANSPORT & PARKING,ODHR,CORPORATE TRAVEL MANAGEMENTLIMITED,PINV904,180.65
BEIS,ACAS,31/07/2022,PUBLIC TRANSPORT & PARKING,ODHR,CORPORATE TRAVEL MANAGEMENTLIMITED,PINV904,14.65
BEIS,ACAS,31/07/2022,PUBLIC TRANSPORT & PARKING,SPPC,CORPORATE TRAVEL MANAGEMENTLIMITED,PINV904,137.45
BEIS,ACAS,31/07/2022,PUBLIC TRANSPORT & PARKING,NORTH&MID,CORPORATE TRAVEL MANAGEMENTLIMITED,PINV904,-28.8
BEIS,ACAS,31/07/2022,PUBLIC TRANSPORT & PARKING,ODHR,CORPORATE TRAVEL MANAGEMENTLIMITED,PINV904,271.05
BEIS,ACAS,31/07/2022,PUBLIC TRANSPORT & PARKING,DELIVERY,CORPORATE TRAVEL MANAGEMENTLIMITED,PINV904,101.7
BEIS,ACAS,31/07/2022,HOTEL EXPENSES,WALES&MID,CORPORATE TRAVEL MANAGEMENTLIMITED,PINV904,91.79
BEIS,ACAS,31/07/2022,HOTEL EXPENSES,SOUTH&LONDON,CORPORATE TRAVEL MANAGEMENTLIMITED,PINV904,141.12
BEIS,ACAS,31/07/2022,PUBLIC TRANSPORT & PARKING,SOUTH&LONDON,CORPORATE TRAVEL MANAGEMENTLIMITED,PINV904,151.55
BEIS,ACAS,31/07/2022,PUBLIC TRANSPORT & PARKING,FEP,CORPORATE TRAVEL MANAGEMENTLIMITED,PINV904,-28
BEIS,ACAS,31/07/2022,PUBLIC TRANSPORT & PARKING,FEP,CORPORATE TRAVEL MANAGEMENTLIMITED,PINV904,-28
BEIS,ACAS,31/07/2022,HOTEL EXPENSES,NORTH&MID,CORPORATE TRAVEL MANAGEMENTLIMITED,PINV904,36.48
BEIS,ACAS,31/07/2022,PUBLIC TRANSPORT & PARKING,SOUTH&LONDON,CORPORATE TRAVEL MANAGEMENTLIMITED,PINV904,103.75
BEIS,ACAS,31/07/2022,PUBLIC TRANSPORT & PARKING,STRATEGY,CORPORATE TRAVEL MANAGEMENTLIMITED,PINV904,20.52
BEIS,ACAS,31/07/2022,PUBLIC TRANSPORT & PARKING,STRATEGY,CORPORATE TRAVEL MANAGEMENTLIMITED,PINV904,20.53
BEIS,ACAS,31/07/2022,HOTEL EXPENSES,SPPC,CORPORATE TRAVEL MANAGEMENTLIMITED,PINV904,225.1
BEIS,ACAS,31/07/2022,HOTEL EXPENSES,SPPC,CORPORATE TRAVEL MANAGEMENTLIMITED,PINV904,422.92
BEIS,ACAS,31/07/2022,HOTEL EXPENSES,SPPC,CORPORATE TRAVEL MANAGEMENTLIMITED,PINV904,408.11
BEIS,ACAS,31/07/2022,HOTEL EXPENSES,SOUTH&LONDON,CORPORATE TRAVEL MANAGEMENTLIMITED,PINV904,71.79
BEIS,ACAS,31/07/2022,HOTEL EXPENSES,SPPC,CORPORATE TRAVEL MANAGEMENTLIMITED,PINV904,408.11
BEIS,ACAS,31/07/2022,HOTEL EXPENSES,NORTH&MID,CORPORATE TRAVEL MANAGEMENTLIMITED,PINV904,35.04
BEIS,ACAS,31/07/2022,PUBLIC TRANSPORT & PARKING,NORTH&MID,CORPORATE TRAVEL MANAGEMENTLIMITED,PINV904,14.25
BEIS,ACAS,31/07/2022,PUBLIC TRANSPORT & PARKING,NORTH&MID,CORPORATE TRAVEL MANAGEMENTLIMITED,PINV904,37.85
BEIS,ACAS,31/07/2022,PUBLIC TRANSPORT & PARKING,DELIVERY,CORPORATE TRAVEL MANAGEMENTLIMITED,PINV904,247.05
BEIS,ACAS,31/07/2022,PUBLIC TRANSPORT & PARKING,SPPC,CORPORATE TRAVEL MANAGEMENTLIMITED,PINV904,133.75
BEIS,ACAS,31/07/2022,PUBLIC TRANSPORT & PARKING,SPPC,CORPORATE TRAVEL MANAGEMENTLIMITED,PINV904,133.75
BEIS,ACAS,31/07/2022,PUBLIC TRANSPORT & PARKING,ODHR,CORPORATE TRAVEL MANAGEMENTLIMITED,PINV904,112.05
BEIS,ACAS,31/07/2022,HOTEL EXPENSES,SPPC,CORPORATE TRAVEL MANAGEMENTLIMITED,PINV904,208.22
BEIS,ACAS,31/07/2022,HOTEL EXPENSES,SOUTH&LONDON,CORPORATE TRAVEL MANAGEMENTLIMITED,PINV904,160.12
BEIS,ACAS,31/07/2022,PUBLIC TRANSPORT & PARKING,WALES&MID,CORPORATE TRAVEL MANAGEMENTLIMITED,PINV904,212.9
BEIS,ACAS,31/07/2022,PUBLIC TRANSPORT & PARKING,SCOTLAND,CORPORATE TRAVEL MANAGEMENTLIMITED,PINV904,39.75
BEIS,ACAS,31/07/2022,PUBLIC TRANSPORT & PARKING,SPPC,CORPORATE TRAVEL MANAGEMENTLIMITED,PINV904,239.75
BEIS,ACAS,31/07/2022,PUBLIC TRANSPORT & PARKING,DELIVERY,CORPORATE TRAVEL MANAGEMENTLIMITED,PINV904,47.3
BEIS,ACAS,31/07/2022,PUBLIC TRANSPORT & PARKING,ODHR,CORPORATE TRAVEL MANAGEMENTLIMITED,PINV904,111.25
BEIS,ACAS,31/07/2022,PUBLIC TRANSPORT & PARKING,DELIVERY,CORPORATE TRAVEL MANAGEMENTLIMITED,PINV904,69.85
BEIS,ACAS,31/07/2022,PUBLIC TRANSPORT & PARKING,FEP,CORPORATE TRAVEL MANAGEMENTLIMITED,PINV904,-30.8
BEIS,ACAS,31/07/2022,PUBLIC TRANSPORT & PARKING,FEP,CORPORATE TRAVEL MANAGEMENTLIMITED,PINV904,-45.9
BEIS,ACAS,31/07/2022,HOTEL EXPENSES,SPPC,CORPORATE TRAVEL MANAGEMENTLIMITED,PINV904,1.12
BEIS,ACAS,31/07/2022,PUBLIC TRANSPORT & PARKING,ODHR,CORPORATE TRAVEL MANAGEMENTLIMITED,PINV904,188.25
BEIS,ACAS,31/07/2022,PUBLIC TRANSPORT & PARKING,DELIVERY,CORPORATE TRAVEL MANAGEMENTLIMITED,PINV904,-53.1
BEIS,ACAS,31/07/2022,PUBLIC TRANSPORT & PARKING,DELIVERY,CORPORATE TRAVEL MANAGEMENTLIMITED,PINV904,-133
BEIS,ACAS,31/07/2022,PUBLIC TRANSPORT & PARKING,WALES&MID,CORPORATE TRAVEL MANAGEMENTLIMITED,PINV904,128.85
BEIS,ACAS,31/07/2022,HOTEL EXPENSES,SOUTH&LONDON,CORPORATE TRAVEL MANAGEMENTLIMITED,PINV904,71.42
BEIS,ACAS,31/07/2022,PUBLIC TRANSPORT & PARKING,SOUTH&LONDON,CORPORATE TRAVEL MANAGEMENTLIMITED,PINV904,-234.8
BEIS,ACAS,31/07/2022,PUBLIC TRANSPORT & PARKING,ODHR,CORPORATE TRAVEL MANAGEMENTLIMITED,PINV904,189.05
BEIS,ACAS,31/07/2022,PUBLIC TRANSPORT & PARKING,ODHR,CORPORATE TRAVEL MANAGEMENTLIMITED,PINV904,-65
BEIS,ACAS,31/07/2022,PUBLIC TRANSPORT & PARKING,ODHR,CORPORATE TRAVEL MANAGEMENTLIMITED,PINV904,12.85
BEIS,ACAS,31/07/2022,HOTEL EXPENSES,STRATEGY,CORPORATE TRAVEL MANAGEMENTLIMITED,PINV904,88.56
BEIS,ACAS,31/07/2022,PUBLIC TRANSPORT & PARKING,DELIVERY,CORPORATE TRAVEL MANAGEMENTLIMITED,PINV904,152.25
BEIS,ACAS,31/07/2022,PUBLIC TRANSPORT & PARKING,STRATEGY,CORPORATE TRAVEL MANAGEMENTLIMITED,PINV904,105.75
BEIS,ACAS,31/07/2022,PUBLIC TRANSPORT & PARKING,DELIVERY,CORPORATE TRAVEL MANAGEMENTLIMITED,PINV904,247.05
BEIS,ACAS,31/07/2022,PUBLIC TRANSPORT & PARKING,DELIVERY,CORPORATE TRAVEL MANAGEMENTLIMITED,PINV904,67.55
BEIS,ACAS,31/07/2022,PUBLIC TRANSPORT & PARKING,STRATEGY,CORPORATE TRAVEL MANAGEMENTLIMITED,PINV904,118.55
BEIS,ACAS,31/07/2022,PUBLIC TRANSPORT & PARKING,STRATEGY,CORPORATE TRAVEL MANAGEMENTLIMITED,PINV904,149.25
BEIS,ACAS,31/07/2022,PUBLIC TRANSPORT & PARKING,WALES&MID,CORPORATE TRAVEL MANAGEMENTLIMITED,PINV904,41.85
BEIS,ACAS,31/07/2022,PUBLIC TRANSPORT & PARKING,WALES&MID,CORPORATE TRAVEL MANAGEMENTLIMITED,PINV904,41.85
BEIS,ACAS,31/07/2022,PUBLIC TRANSPORT & PARKING,STRATEGY,CORPORATE TRAVEL MANAGEMENTLIMITED,PINV904,68.85
BEIS,ACAS,31/07/2022,PUBLIC TRANSPORT & PARKING,DELIVERY,CORPORATE TRAVEL MANAGEMENTLIMITED,PINV904,133.45
BEIS,ACAS,31/07/2022,PUBLIC TRANSPORT & PARKING,NORTH&MID,CORPORATE TRAVEL MANAGEMENTLIMITED,PINV904,12.95
BEIS,ACAS,31/07/2022,CO&CAC Non Staff T&S,CAC,CORPORATE TRAVEL MANAGEMENTLIMITED,PINV904,87.2
BEIS,ACAS,31/07/2022,PUBLIC TRANSPORT & PARKING,CAC,CORPORATE TRAVEL MANAGEMENTLIMITED,PINV904,28.75
BEIS,ACAS,31/07/2022,PUBLIC TRANSPORT & PARKING,STRATEGY,CORPORATE TRAVEL MANAGEMENTLIMITED,PINV904,72.05
BEIS,ACAS,31/07/2022,PUBLIC TRANSPORT & PARKING,SPPC,CORPORATE TRAVEL MANAGEMENTLIMITED,PINV904,-90.5
BEIS,ACAS,31/07/2022,PUBLIC TRANSPORT & PARKING,NORTH&MID,CORPORATE TRAVEL MANAGEMENTLIMITED,PINV904,-39.9
BEIS,ACAS,31/07/2022,HOTEL EXPENSES,DELIVERY,CORPORATE TRAVEL MANAGEMENTLIMITED,PINV904,1.12
BEIS,ACAS,31/07/2022,HOTEL EXPENSES,DELIVERY,CORPORATE TRAVEL MANAGEMENTLIMITED,PINV904,1.12
BEIS,ACAS,31/07/2022,HOTEL EXPENSES,DELIVERY,CORPORATE TRAVEL MANAGEMENTLIMITED,PINV904,1.12
BEIS,ACAS,31/07/2022,HOTEL EXPENSES,DELIVERY,CORPORATE TRAVEL MANAGEMENTLIMITED,PINV904,1.12
BEIS,ACAS,31/07/2022,HOTEL EXPENSES,DELIVERY,CORPORATE TRAVEL MANAGEMENTLIMITED,PINV904,1.12
BEIS,ACAS,31/07/2022,HOTEL EXPENSES,SOUTH&LONDON,CORPORATE TRAVEL MANAGEMENTLIMITED,PINV904,1.12
BEIS,ACAS,31/07/2022,PUBLIC TRANSPORT & PARKING,NORTH&MID,CORPORATE TRAVEL MANAGEMENTLIMITED,PINV904,-15.2
BEIS,ACAS,31/07/2022,HOTEL EXPENSES,WALES&MID,CORPORATE TRAVEL MANAGEMENTLIMITED,PINV904,116.79
BEIS,ACAS,31/07/2022,PUBLIC TRANSPORT & PARKING,FEP,CORPORATE TRAVEL MANAGEMENTLIMITED,PINV904,103.85
BEIS,ACAS,31/07/2022,PUBLIC TRANSPORT & PARKING,ODHR,CORPORATE TRAVEL MANAGEMENTLIMITED,PINV904,135.05
BEIS,ACAS,31/07/2022,PUBLIC TRANSPORT & PARKING,NORTH&MID,CORPORATE TRAVEL MANAGEMENTLIMITED,PINV904,24.55
BEIS,ACAS,31/07/2022,PUBLIC TRANSPORT & PARKING,SPPC,CORPORATE TRAVEL MANAGEMENTLIMITED,PINV904,259.25
BEIS,ACAS,31/07/2022,HOTEL EXPENSES,DELIVERY,CORPORATE TRAVEL MANAGEMENTLIMITED,PINV904,1.12
BEIS,ACAS,31/07/2022,HOTEL EXPENSES,DELIVERY,CORPORATE TRAVEL MANAGEMENTLIMITED,PINV904,1.12
BEIS,ACAS,31/07/2022,HOTEL EXPENSES,DELIVERY,CORPORATE TRAVEL MANAGEMENTLIMITED,PINV904,1.12
BEIS,ACAS,31/07/2022,PUBLIC TRANSPORT & PARKING,SOUTH&LONDON,CORPORATE TRAVEL MANAGEMENTLIMITED,PINV904,41.95
BEIS,ACAS,31/07/2022,PUBLIC TRANSPORT & PARKING,SOUTH&LONDON,CORPORATE TRAVEL MANAGEMENTLIMITED,PINV904,41.95
BEIS,ACAS,31/07/2022,HOTEL EXPENSES,STRATEGY,CORPORATE TRAVEL MANAGEMENTLIMITED,PINV904,194.62
BEIS,ACAS,31/07/2022,HOTEL EXPENSES,STRATEGY,CORPORATE TRAVEL MANAGEMENTLIMITED,PINV904,1.12
BEIS,ACAS,31/07/2022,PUBLIC TRANSPORT & PARKING,DELIVERY,CORPORATE TRAVEL MANAGEMENTLIMITED,PINV904,342.85
BEIS,ACAS,31/07/2022,PUBLIC TRANSPORT & PARKING,SPPC,CORPORATE TRAVEL MANAGEMENTLIMITED,PINV904,188.95
BEIS,ACAS,31/07/2022,HOTEL EXPENSES,DELIVERY,CORPORATE TRAVEL MANAGEMENTLIMITED,PINV904,1.12
BEIS,ACAS,31/07/2022,HOTEL EXPENSES,DELIVERY,CORPORATE TRAVEL MANAGEMENTLIMITED,PINV904,1.12
BEIS,ACAS,31/07/2022,PUBLIC TRANSPORT & PARKING,SOUTH&LONDON,CORPORATE TRAVEL MANAGEMENTLIMITED,PINV904,131.25
BEIS,ACAS,31/07/2022,PUBLIC TRANSPORT & PARKING,STRATEGY,CORPORATE TRAVEL MANAGEMENTLIMITED,PINV904,205.15
BEIS,ACAS,31/07/2022,PUBLIC TRANSPORT & PARKING,SOUTH&LONDON,CORPORATE TRAVEL MANAGEMENTLIMITED,PINV904,90.95
BEIS,ACAS,31/07/2022,HOTEL EXPENSES,NORTH&MID,CORPORATE TRAVEL MANAGEMENTLIMITED,PINV904,35.04
BEIS,ACAS,31/07/2022,PUBLIC TRANSPORT & PARKING,FEP,CORPORATE TRAVEL MANAGEMENTLIMITED,PINV904,135.25
BEIS,ACAS,31/07/2022,PUBLIC TRANSPORT & PARKING,DELIVERY,CORPORATE TRAVEL MANAGEMENTLIMITED,PINV904,290.45
BEIS,ACAS,31/07/2022,PUBLIC TRANSPORT & PARKING,SPPC,CORPORATE TRAVEL MANAGEMENTLIMITED,PINV904,153.65
BEIS,ACAS,31/07/2022,PUBLIC TRANSPORT & PARKING,WALES&MID,CORPORATE TRAVEL MANAGEMENTLIMITED,PINV904,212.85
BEIS,ACAS,01/08/2022,TELEPHONES,DDAT,GTT,PINV905,1823.81
BEIS,ACAS,01/08/2022,TELEPHONES,DDAT,GTT,PINV905,202.64
BEIS,ACAS,23/07/2022,SOFTWARE & LICENCES,DELIVERY,ZOOM VIDEO COMMUNICATIONS INC,PINV906,68.95
BEIS,ACAS,23/07/2022,SOFTWARE & LICENCES,DELIVERY,ZOOM VIDEO COMMUNICATIONS INC,PINV906,137.9
BEIS,ACAS,23/07/2022,SOFTWARE & LICENCES,ODHR,ZOOM VIDEO COMMUNICATIONS INC,PINV906,13.79
BEIS,ACAS,23/07/2022,SOFTWARE & LICENCES,DELIVERY,ZOOM VIDEO COMMUNICATIONS INC,PINV906,151.69
BEIS,ACAS,23/07/2022,SOFTWARE & LICENCES,DELIVERY,ZOOM VIDEO COMMUNICATIONS INC,PINV906,13.79
BEIS,ACAS,23/07/2022,SOFTWARE & LICENCES,SCOTLAND,ZOOM VIDEO COMMUNICATIONS INC,PINV906,110.31
BEIS,ACAS,23/07/2022,SOFTWARE & LICENCES,NORTH&MID,ZOOM VIDEO COMMUNICATIONS INC,PINV906,68.95
BEIS,ACAS,23/07/2022,SOFTWARE & LICENCES,NORTH&MID,ZOOM VIDEO COMMUNICATIONS INC,PINV906,151.69
BEIS,ACAS,23/07/2022,SOFTWARE & LICENCES,NORTH&MID,ZOOM VIDEO COMMUNICATIONS INC,PINV906,124.11
BEIS,ACAS,23/07/2022,SOFTWARE & LICENCES,NORTH&MID,ZOOM VIDEO COMMUNICATIONS INC,PINV906,110.31
BEIS,ACAS,23/07/2022,SOFTWARE & LICENCES,WALES&MID,ZOOM VIDEO COMMUNICATIONS INC,PINV906,165.48
BEIS,ACAS,23/07/2022,SOFTWARE & LICENCES,WALES&MID,ZOOM VIDEO COMMUNICATIONS INC,PINV906,110.31
BEIS,ACAS,23/07/2022,SOFTWARE & LICENCES,SOUTH&LONDON,ZOOM VIDEO COMMUNICATIONS INC,PINV906,96.53
BEIS,ACAS,23/07/2022,SOFTWARE & LICENCES,SOUTH&LONDON,ZOOM VIDEO COMMUNICATIONS INC,PINV906,151.69
BEIS,ACAS,23/07/2022,SOFTWARE & LICENCES,SOUTH&LONDON,ZOOM VIDEO COMMUNICATIONS INC,PINV906,110.32
BEIS,ACAS,23/07/2022,SOFTWARE & LICENCES,SOUTH&LONDON,ZOOM VIDEO COMMUNICATIONS INC,PINV906,82.74
BEIS,ACAS,23/07/2022,SOFTWARE & LICENCES,NORTH&MID,ZOOM VIDEO COMMUNICATIONS INC,PINV906,13.79
BEIS,ACAS,04/08/2022,AGENCY STAFF,NORTH&MID,ALEXANDER MANN SOLUTIONS LTD,PINV907,644.69
BEIS,ACAS,20/07/2022,ARBITRATORS FEES,DELIVERY,CHRISTOPHER PAUL GOODWILL,PINV909,848.73
BEIS,ACAS,01/08/2022,PUBLICITY,STRATEGY,CISION,PINV910,2670
BEIS,ACAS,08/08/2022,VENUE HIRE (REC VAT),NORTH&MID,CALDER CONFERENCES LTD,PINV912,360
BEIS,ACAS,08/08/2022,VENUE HIRE (REC VAT),SOUTH&LONDON,CALDER CONFERENCES LTD,PINV912,140
BEIS,ACAS,08/08/2022,VENUE HIRE (REC VAT),WALES&MID,CALDER CONFERENCES LTD,PINV912,324.96
BEIS,ACAS,08/08/2022,VENUE HIRE (REC VAT),WALES&MID,CALDER CONFERENCES LTD,PINV912,250
BEIS,ACAS,08/08/2022,CATERING,WALES&MID,CALDER CONFERENCES LTD,PINV912,68
BEIS,ACAS,08/08/2022,CATERING,WALES&MID,CALDER CONFERENCES LTD,PINV912,96
BEIS,ACAS,08/08/2022,VENUE HIRE (REC VAT),NORTH&MID,CALDER CONFERENCES LTD,PINV912,204.48
BEIS,ACAS,08/08/2022,VENUE HIRE (REC VAT),NORTH&MID,CALDER CONFERENCES LTD,PINV912,55.98
BEIS,ACAS,31/07/2022,MANAGED SERVICE Off-PAYROLL WK,DELIVERY,OPENCAST SOFTWARE EUROPE LTD,PINV914,146742.6
BEIS,ACAS,31/07/2022,MANAGED SERVICE Off-PAYROLL WK,DELIVERY,OPENCAST SOFTWARE EUROPE LTD,PINV914,450
BEIS,ACAS,31/07/2022,MANAGED SERVICE Off-PAYROLL WK,DELIVERY,OPENCAST SOFTWARE EUROPE LTD,PINV914,6074.4
BEIS,ACAS,25/08/2022,PERSONAL EXPENSE,SOUTH&LONDON,NAME / DESCRIPTION WITHHELD,EXPS915,92.7
BEIS,ACAS,25/08/2022,PERSONAL EXPENSE,SOUTH&LONDON,NAME / DESCRIPTION WITHHELD,EXPS915,248.4
BEIS,ACAS,25/08/2022,PERSONAL EXPENSE,SOUTH&LONDON,NAME / DESCRIPTION WITHHELD,EXPS915,40.75
BEIS,ACAS,25/08/2022,PERSONAL EXPENSE,SOUTH&LONDON,NAME / DESCRIPTION WITHHELD,EXPS915,20
BEIS,ACAS,25/08/2022,PERSONAL EXPENSE,SOUTH&LONDON,NAME / DESCRIPTION WITHHELD,EXPS915,20
BEIS,ACAS,25/08/2022,PERSONAL EXPENSE,SOUTH&LONDON,NAME / DESCRIPTION WITHHELD,EXPS915,20
BEIS,ACAS,09/08/2022,MOBILE PHONES,DDAT,TELEFONICA UK LTD (O2),PINV916,5161.54
BEIS,ACAS,09/08/2022,MOBILE PHONES,DDAT,TELEFONICA UK LTD (O2),PINV916,573.5
BEIS,ACAS,04/08/2022,PROFESSIONAL FEES,DDAT,W3 PARTNERSHIP LTD,PINV917,2437.33
BEIS,ACAS,08/08/2022,PROFESSIONAL FEES,DDAT,GAMMA TELECOM LIMITED,PINV918,4281.52
BEIS,ACAS,30/08/2022,PERSONAL EXPENSE,WALES&MID,NAME / DESCRIPTION WITHHELD,EXPS919,162
BEIS,ACAS,30/08/2022,PERSONAL EXPENSE,WALES&MID,NAME / DESCRIPTION WITHHELD,EXPS919,98.55
BEIS,ACAS,30/08/2022,PERSONAL EXPENSE,WALES&MID,NAME / DESCRIPTION WITHHELD,EXPS919,35
BEIS,ACAS,30/08/2022,PERSONAL EXPENSE,WALES&MID,NAME / DESCRIPTION WITHHELD,EXPS919,5
BEIS,ACAS,30/08/2022,PERSONAL EXPENSE,WALES&MID,NAME / DESCRIPTION WITHHELD,EXPS919,10
BEIS,ACAS,25/07/2022,PROFESSIONAL FEES,FEP,GOVERNMENT PROPERTY AGENCY,PINV919,3866.54
BEIS,ACAS,11/07/2022,PUBLICITY,STRATEGY,BRANDWATCH,PINV920,5745.6
BEIS,ACAS,03/08/2022,OCCUPATIONAL HEALTH SERVICE,ODHR,HEALTH MANAGEMENT LTD,PINV921,1068.98
BEIS,ACAS,10/08/2022,EXTERNAL LEARNING,ODHR,QAIQ,PINV922,5518.46
BEIS,ACAS,12/08/2022,VENUE HIRE (REC VAT),SOUTH&LONDON,CALDER CONFERENCES LTD,PINV923,432
BEIS,ACAS,12/08/2022,PUBLIC TRANSPORT & PARKING,SOUTH&LONDON,CALDER CONFERENCES LTD,PINV923,25
BEIS,ACAS,16/08/2022,CHILDCARE VOUCHERS,FEP,EDENRED CHILDCARE VOUCHERS LTD,PINV928,2276
BEIS,ACAS,04/08/2022,OCCUPATIONAL HEALTH SERVICE,ODHR,HEALTH MANAGEMENT LTD,PINV929,588
BEIS,ACAS,31/07/2022,OCCUPATIONAL HEALTH SERVICE,ODHR,TP HEALTH LTD,PINV930,906
BEIS,ACAS,16/08/2022,REFUNDS,NORTH&MID,LAMONT JONES,PINV932,255
BEIS,ACAS,12/08/2022,REFUNDS,SOUTH&LONDON,THE FRANCIS CRICK INSTITUTE,PINV935,1032
BEIS,ACAS,19/08/2022,VENUE HIRE (REC VAT),NORTH&MID,CALDER CONFERENCES LTD,PINV936,420
BEIS,ACAS,19/08/2022,VENUE HIRE (REC VAT),NORTH&MID,CALDER CONFERENCES LTD,PINV936,5
BEIS,ACAS,19/08/2022,VENUE HIRE (REC VAT),NORTH&MID,CALDER CONFERENCES LTD,PINV936,44.64
BEIS,ACAS,19/08/2022,VENUE HIRE (REC VAT),NORTH&MID,CALDER CONFERENCES LTD,PINV936,320
BEIS,ACAS,19/08/2022,CATERING,NORTH&MID,CALDER CONFERENCES LTD,PINV936,239.4
BEIS,ACAS,19/08/2022,VENUE HIRE (REC VAT),SOUTH&LONDON,CALDER CONFERENCES LTD,PINV936,340
BEIS,ACAS,19/08/2022,VENUE HIRE (REC VAT),NORTH&MID,CALDER CONFERENCES LTD,PINV936,52.12
BEIS,ACAS,19/08/2022,VENUE HIRE (REC VAT),NORTH&MID,CALDER CONFERENCES LTD,PINV936,490
BEIS,ACAS,19/08/2022,VENUE HIRE (REC VAT),NORTH&MID,CALDER CONFERENCES LTD,PINV936,106.91
BEIS,ACAS,19/08/2022,REFUNDS,NORTH&MID,DERIVCO ISLE OF MAN LTD,PINV937,2100
BEIS,ACAS,16/08/2022,PROFESSIONAL FEES,FEP,GOVERNMENT PROPERTY AGENCY,PINV938,5268.64
BEIS,ACAS,16/08/2022,SERVICE CHARGES,FEP,GOVERNMENT PROPERTY AGENCY,PINV938,2634.5
BEIS,ACAS,16/08/2022,FACILITIES MANAGEMENT,FEP,GOVERNMENT PROPERTY AGENCY,PINV938,9649.2
BEIS,ACAS,16/08/2022,RATES,FEP,GOVERNMENT PROPERTY AGENCY,PINV938,7365.75
BEIS,ACAS,16/08/2022,Lease Liability,FEP,GOVERNMENT PROPERTY AGENCY,PINV938,46431.23
BEIS,ACAS,10/08/2022,GOVT SOLICITORS FEES,ODHR,GOVERNMENT LEGAL DEPARTMENT,PINV939,14517.48
BEIS,ACAS,10/08/2022,GOVT SOLICITORS FEES,DELIVERY,GOVERNMENT LEGAL DEPARTMENT,PINV947,12.96
BEIS,ACAS,10/08/2022,GOVT SOLICITORS FEES,DELIVERY,GOVERNMENT LEGAL DEPARTMENT,PINV947,3419.28
BEIS,ACAS,24/08/2022,REFUNDS,SOUTH&LONDON,ALLPRESS FARMS LTD,PINV950,605
BEIS,ACAS,24/08/2022,HIRE CAR COSTS,ODHR,ENTERPRISE RENT-A-CAR,PINV951,-107.97
BEIS,ACAS,24/08/2022,HIRE CAR PETROL,ODHR,ENTERPRISE RENT-A-CAR,PINV951,-64.77
BEIS,ACAS,24/08/2022,HIRE CAR COSTS,ODHR,ENTERPRISE RENT-A-CAR,PINV951,99.95
BEIS,ACAS,24/08/2022,HIRE CAR COSTS,DELIVERY,ENTERPRISE RENT-A-CAR,PINV951,103.46
BEIS,ACAS,24/08/2022,HIRE CAR COSTS,NORTH&MID,ENTERPRISE RENT-A-CAR,PINV951,73.9
BEIS,ACAS,24/08/2022,HIRE CAR COSTS,SOUTH&LONDON,ENTERPRISE RENT-A-CAR,PINV951,51.95
BEIS,ACAS,24/08/2022,HIRE CAR COSTS,NORTH&MID,ENTERPRISE RENT-A-CAR,PINV951,103.9
BEIS,ACAS,26/08/2022,VENUE HIRE (REC VAT),SOUTH&LONDON,CALDER CONFERENCES LTD,PINV952,444
BEIS,ACAS,19/08/2022,REFUNDS,WALES&MID,RRADAR LTD,PINV953,255
BEIS,ACAS,01/08/2022,VENUE HIRE (REC VAT),FEP,CLOCKWISE SAVOY LIMITED,PINV954,6600
BEIS,ACAS,25/08/2022,AGENCY STAFF,NORTH&MID,ALEXANDER MANN SOLUTIONS LTD,PINV955,1289.38
